bitfinex/quotes_SOLUSD_20250722
["timestamp","ask_amount","ask_price","bid_price","bid_amount"]
[1753228022260,10.0,205.13,205.1,10.16222765]
[1753228022461,10.16222765,205.17,205.08,4.87614589]
[1753228022462,10.0,205.15,205.11,10.16222765]
[1753228022760,0.68,205.14,205.06,41.03642249]
[1753228022959,10.0,205.09,205.05,46.32222765]
[1753228023476,10.0,205.09,205.05,4.87683823]
[1753228023881,10.0,205.09,205.07,10.26222765]
[1753228024063,10.0,205.13,205.08,10.65222765]
[1753228024267,10.0,205.13,205.12,10.16222765]
[1753228024587,10.0,205.13,205.1,36.16]
[1753228024770,10.0,205.16,205.12,10.16222765]
[1753228025087,10.0,205.18,205.15,10.16222765]
[1753228025466,10.0,205.18,205.11,36.16]
[1753228025467,10.0,205.18,205.14,36.18]
[1753228025862,10.68,205.18,205.14,10.16222765]
[1753228026107,10.16222765,205.2,205.13,10.16222765]
[1753228026108,10.0,205.15,205.13,10.16222765]
[1753228026285,10.0,205.15,205.12,36.18]
[1753228026601,10.0,205.15,205.13,10.16222765]
[1753228026762,10.0,205.15,205.14,10.16222765]
[1753228027586,10.0,205.15,205.1,62.18]
[1753228027786,10.0,205.1,205.07,0.1]
[1753228027991,10.0,205.1,205.09,10.16222765]
[1753228028294,4.87422834,205.17,205.09,10.16222765]
[1753228028295,10.0,205.12,205.09,10.16222765]
[1753228028489,10.0,205.12,205.11,10.16222765]
[1753228028790,10.0,205.12,205.1,10.16222765]
[1753228028990,10.0,205.12,205.08,4.87614589]
[1753228029288,10.0,205.14,205.11,10.16222765]
[1753228029587,10.0,205.14,205.13,10.16222765]
[1753228029777,10.0,205.14,205.11,10.16222765]
[1753228030178,10.0,205.14,205.12,10.16222765]
[1753228031489,10.0,205.14,205.12,15.03742005]
[1753228031685,10.0,205.14,205.13,10.16222765]
[1753228031888,10.0,205.16,205.13,10.65222765]
[1753228032096,10.0,205.16,205.15,10.16222765]
[1753228032711,10.0,205.19,205.15,46.28222765]
[1753228032898,10.0,205.19,205.18,10.16222765]
[1753228033578,10.0,205.19,205.17,10.16222765]
[1753228034607,10.0,205.19,205.18,10.16222765]
[1753228034988,10.0,205.19,205.17,10.16222765]
[1753228035197,10.68,205.19,205.16,36.1]
[1753228035506,10.68,205.19,205.15,4.9342843]
[1753228035507,10.0,205.17,205.15,4.9342843]
[1753228035814,10.0,205.17,205.15,41.0342843]
[1753228035986,10.0,205.17,205.15,4.9342843]
[1753228036183,10.0,205.17,205.15,40.9942843]
[1753228036718,10.0,205.17,205.16,10.16222765]
[1753228036887,10.0,205.19,205.16,10.16222765]
[1753228037214,10.0,205.19,205.18,10.16222765]
[1753228037984,10.0,205.19,205.18,15.03599702]
[1753228040414,10.0,205.19,205.18,22.03599702]
[1753228041310,10.0,205.19,205.18,18.71045868]
[1753228041609,10.0,205.19,205.18,7.0]
[1753228041913,10.7,205.19,205.15,7.06]
[1753228042230,10.0,205.16,205.15,0.06]
[1753228042726,10.7,205.16,205.15,0.06]
[1753228043088,22.4109338,205.16,205.15,0.06]
[1753228043289,22.4109338,205.16,205.07,0.1]
[1753228043290,10.0,205.1,205.07,13.93668931]
[1753228043489,10.7,205.1,205.07,13.93668931]
[1753228043690,10.7,205.1,205.07,0.1]
[1753228043986,10.0,205.08,205.07,0.1]
[1753228044414,10.7,205.08,205.07,0.1]
[1753228048099,10.0,205.08,205.07,10.29785071]
[1753228048506,10.7,205.08,205.07,10.29785071]
[1753228048826,10.0,205.08,205.07,10.29785071]
[1753228051418,10.0,205.08,205.07,0.1]
[1753228051619,10.0,205.08,205.02,0.1]
[1753228051620,16.78468397,205.03,205.02,0.1]
[1753228051929,10.0,204.9,204.89,0.66]
[1753228052127,10.0,204.9,204.89,10.85785071]
[1753228052348,6.6565,204.99,204.89,0.66]
[1753228052349,10.0,204.92,204.89,0.66]
[1753228052504,16.85435071,204.99,204.82,18.91438428]
[1753228052505,10.0,204.9,204.85,4.88160051]
[1753228052709,10.0,204.9,204.79,0.54830509]
[1753228052710,10.0,204.9,204.79,0.06]
[1753228052932,10.0,204.88,204.87,10.19785071]
[1753228053128,10.0,204.88,204.84,0.66]
[1753228053431,10.0,204.86,204.84,0.66]
[1753228053634,10.0,204.91,204.85,10.19785071]
[1753228053932,10.0,204.91,204.9,10.19785071]
[1753228054225,10.0,204.89,204.88,10.19785071]
[1753228054433,26.0,204.96,204.88,10.19785071]
[1753228054434,10.0,204.91,204.88,10.85785071]
[1753228054620,10.0,204.91,204.84,40.98182509]
[1753228054621,10.0,204.91,204.9,10.19785071]
[1753228054811,10.0,204.93,204.9,10.85785071]
[1753228055021,10.0,204.93,204.92,10.19785071]
[1753228055445,10.0,204.93,204.9,10.19785071]
[1753228055741,4.8795229,204.94,204.9,10.19785071]
[1753228055742,10.0,204.91,204.9,10.19785071]
[1753228057149,10.0,204.95,204.9,10.85785071]
[1753228057332,10.0,204.95,204.94,10.19785071]
[1753228057937,10.0,204.95,204.91,0.66]
[1753228058157,10.0,204.92,204.88,4.88090589]
[1753228058349,10.0,204.98,204.91,46.29785071]
[1753228058535,10.0,204.98,204.97,10.19785071]
[1753228058850,10.0,204.95,204.93,0.66]
[1753228059039,10.0,204.92,204.91,36.1]
[1753228059229,10.0,204.92,204.91,46.29785071]
[1753228059427,10.0,204.92,204.91,46.95785071]
[1753228059930,10.0,204.92,204.91,10.85785071]
[1753228060847,10.0,204.94,204.91,10.85785071]
[1753228061044,10.0,204.94,204.93,10.19785071]
[1753228061248,10.0,204.94,204.93,10.85785071]
[1753228065048,10.0,204.92,204.9,0.66]
[1753228065259,10.0,204.89,204.88,0.06]
[1753228066025,20.74785071,204.89,204.88,0.06]
[1753228066328,20.19785071,204.89,204.88,0.06]
[1753228066526,20.74785071,204.89,204.88,0.06]
[1753228066950,10.55,204.89,204.88,0.06]
[1753228067158,15.43066767,204.89,204.88,0.06]
[1753228067371,10.0,204.89,204.88,0.06]
[1753228067577,10.0,204.89,204.88,7.61129421]
[1753228067931,10.0,204.91,204.88,7.61129421]
[1753228068125,10.0,204.91,204.9,6.86129421]
[1753228068357,10.0,204.91,204.9,7.55129421]
[1753228068931,10.0,204.91,204.9,0.69]
[1753228069258,10.0,204.84,204.83,3.0]
[1753228069565,10.0,204.84,204.83,10.55129421]
[1753228069770,10.0,204.84,204.83,3.0]
[1753228070738,10.0,204.84,204.83,15.43339155]
[1753228071133,10.0,204.84,204.83,10.55129421]
[1753228071860,10.0,204.84,204.83,9.86129421]
[1753228072057,10.0,204.84,204.83,10.55129421]
[1753228072245,10.0,204.84,204.83,15.43339155]
[1753228072649,10.0,204.86,204.83,15.43339155]
[1753228072837,10.0,204.88,204.84,0.69]
[1753228073156,10.0,204.88,204.87,6.86129421]
[1753228073353,10.0,204.88,204.87,7.55129421]
[1753228073686,10.0,204.84,204.83,3.0]
[1753228073855,39.96843975,204.84,204.83,3.0]
[1753228074064,10.0,204.8,204.74,3.0]
[1753228074354,10.0,204.8,204.75,6.86129421]
[1753228074548,10.1,204.8,204.75,6.86129421]
[1753228074747,10.1,204.8,204.74,3.0]
[1753228074933,10.1,204.8,204.74,9.86129421]
[1753228075138,14.9828125,204.8,204.74,9.86129421]
[1753228075338,14.8828125,204.8,204.74,9.86129421]
[1753228075951,14.8828125,204.8,204.74,3.0]
[1753228075952,21.84410671,204.8,204.74,3.0]
[1753228076655,38.77095225,204.8,204.74,3.0]
[1753228077241,42.14238726,204.8,204.74,3.0]
[1753228077851,10.0,204.75,204.74,3.0]
[1753228078169,10.0,204.6,204.57,15.81100352]
[1753228078461,10.0,204.6,204.59,10.23272922]
[1753228078767,9.5,204.6,204.59,10.23272922]
[1753228078946,9.5,204.6,204.59,10.92272922]
[1753228079558,9.5,204.62,204.59,10.92272922]
[1753228079765,9.5,204.62,204.61,10.23272922]
[1753228079961,9.5,204.62,204.61,10.92272922]
[1753228080561,9.5,204.64,204.61,10.92272922]
[1753228080866,9.5,204.58,204.57,10.23272922]
[1753228081194,9.5,204.58,204.57,0.69]
[1753228081369,9.5,204.58,204.48,12.22554465]
[1753228081540,9.5,204.58,204.53,0.69]
[1753228081741,9.5,204.55,204.54,0.69]
[1753228081962,9.5,204.57,204.54,10.92272922]
[1753228082146,9.5,204.61,204.56,10.23272922]
[1753228082376,9.5,204.61,204.6,10.23272922]
[1753228082680,9.5,204.61,204.6,10.92272922]
[1753228083345,9.5,204.67,204.62,16.78468397]
[1753228083547,9.5,204.67,204.66,10.23272922]
[1753228083746,9.5,204.69,204.66,0.69]
[1753228083975,9.5,204.69,204.68,10.23272922]
[1753228084477,9.5,204.69,204.68,10.92272922]
[1753228084857,38.62441476,204.72,204.68,10.92272922]
[1753228085062,9.5,204.76,204.71,10.23272922]
[1753228085264,9.5,204.76,204.75,10.23272922]
[1753228085570,12.20347527,204.86,204.75,15.8067341]
[1753228085571,9.5,204.78,204.75,15.8067341]
[1753228085882,9.5,204.78,204.77,10.23272922]
[1753228086087,9.5,204.78,204.77,0.69]
[1753228086284,9.5,204.78,204.77,10.92272922]
[1753228087063,9.5,204.81,204.77,10.92272922]
[1753228087248,9.5,204.81,204.8,10.23272922]
[1753228087453,9.5,204.81,204.8,15.80554172]
[1753228088373,9.5,204.81,204.8,10.92272922]
[1753228088944,36.42,204.89,204.8,10.92272922]
[1753228088945,9.5,204.83,204.8,15.80554172]
[1753228089176,9.5,204.83,204.82,10.23272922]
[1753228089351,9.5,204.83,204.82,15.80506492]
[1753228090855,9.5,204.83,204.82,10.92272922]
[1753228091465,9.5,204.83,204.82,15.80506492]
[1753228091860,9.5,204.83,204.82,15.11506492]
[1753228092061,9.5,204.83,204.82,10.23272922]
[1753228092260,9.5,204.83,204.79,5.57304797]
[1753228092468,9.5,204.8,204.79,4.88304797]
[1753228092669,9.5,204.8,204.79,15.11577719]
[1753228093068,9.5,204.8,204.79,15.80577719]
[1753228094869,9.5,204.8,204.79,5.57304797]
[1753228095063,9.5,204.8,204.79,15.80577719]
[1753228095680,9.5,204.8,204.79,10.92272922]
[1753228095882,9.5,204.8,204.79,15.80578015]
[1753228096380,9.5,204.8,204.79,10.92272922]
[1753228097182,9.5,204.8,204.79,15.80578015]
[1753228097761,9.5,204.82,204.79,15.80578015]
[1753228097961,9.5,204.8,204.79,4.88305093]
[1753228098160,9.5,204.8,204.79,15.11578015]
[1753228098382,9.5,204.8,204.79,10.23272922]
[1753228098566,9.5,204.8,204.79,15.82578015]
[1753228098772,9.5,204.8,204.79,0.71]
[1753228098982,9.5,204.8,204.79,15.82578015]
[1753228099180,9.5,204.8,204.79,12.45436034]
[1753228100782,9.53,204.8,204.79,12.45436034]
[1753228101564,9.53,204.8,204.79,0.71]
[1753228102494,9.53,204.8,204.79,7.0]
[1753228102669,9.5,204.78,204.77,13.86130941]
[1753228102869,9.5,204.78,204.77,7.71]
[1753228103087,9.5,204.78,204.77,14.57130941]
[1753228103992,9.53,204.8,204.77,19.45483727]
[1753228104190,9.53,204.8,204.79,6.86130941]
[1753228104393,9.53,204.8,204.79,7.57130941]
[1753228104697,9.53,204.8,204.79,12.45436034]
[1753228105668,0.03,204.8,204.79,12.45436034]
[1753228107685,0.03,204.8,204.79,36.38120588]
[1753228111701,9.5,204.85,204.8,6.99999999]
[1753228111881,0.03,204.86,204.84,13.72261882]
[1753228112070,0.03,204.86,204.85,42.82130941]
[1753228112270,0.03,204.86,204.85,50.5313094]
[1753228113894,0.03,204.86,204.85,55.41293009]
[1753228114197,0.03,204.86,204.85,72.33977563]
[1753228114786,0.03,204.89,204.86,16.92684554]
[1753228115093,0.03,204.89,204.88,6.86130941]
[1753228115595,0.03,204.89,204.88,7.57130941]
[1753228115892,9.5,204.95,204.89,16.92684554]
[1753228116193,9.5,204.97,204.94,6.86130941]
[1753228116394,9.5,204.97,204.96,6.86130941]
[1753228116892,9.5,204.97,204.96,13.8613094]
[1753228117498,9.5,204.97,204.96,18.74031018]
[1753228117704,15.7146,205.01,204.96,62.21161959]
[1753228118003,9.5,205.01,205.0,6.86130941]
[1753228119102,9.5,205.01,205.0,7.57130941]
[1753228119280,0.2,205.02,205.0,7.57130941]
[1753228119484,0.2,205.02,205.01,11.73912024]
[1753228119791,0.2,205.02,205.01,7.57130941]
[1753228119989,0.2,205.02,205.01,6.86130941]
[1753228120305,0.2,205.02,205.01,7.57130941]
[1753228121391,0.2,205.02,205.01,12.44912024]
[1753228122698,0.2,205.02,205.01,7.57130941]
[1753228122897,0.2,205.02,205.01,12.44912024]
[1753228123210,0.2,205.02,205.01,42.68130941]
[1753228124384,0.2,205.02,205.0,4.87802851]
[1753228124385,9.5,204.99,204.97,4.87876274]
[1753228124589,9.5,204.97,204.96,6.99999999]
[1753228124894,7.06130941,205.02,204.93,0.71]
[1753228124895,9.5,204.94,204.93,0.71]
[1753228125094,31.07760358,205.02,204.85,1.99526206]
[1753228125095,9.5,204.91,204.89,6.86130941]
[1753228125310,9.5,204.91,204.87,0.71]
[1753228125311,9.5,204.89,204.88,6.86130941]
[1753228125513,9.5,204.89,204.88,7.57130941]
[1753228125907,9.5,204.87,204.83,40.70209734]
[1753228126106,9.5,204.9,204.86,23.78815495]
[1753228126408,9.5,204.9,204.84,7.57130941]
[1753228126409,9.5,204.92,204.89,6.86130941]
[1753228126612,9.5,204.92,204.91,6.86130941]
[1753228127112,9.5,204.88,204.87,6.86130941]
[1753228128309,9.5,204.82,204.81,0.68]
[1753228128507,9.5,204.82,204.81,7.54130941]
[1753228129807,9.5,204.82,204.81,12.4238835]
[1753228132450,9.5,204.8,204.79,0.06]
[1753228132598,9.5,204.8,204.79,6.92130941]
[1753228133124,9.5,204.8,204.79,0.06]
[1753228134297,9.5,204.8,204.79,6.92130941]
[1753228135805,9.5,204.8,204.79,7.60130941]
[1753228136526,9.5,204.8,204.79,6.92130941]
[1753228136830,9.5,204.8,204.79,11.80436034]
[1753228137403,9.5,204.8,204.79,19.48436033]
[1753228137838,9.5,204.83,204.79,36.41120587]
[1753228138147,9.5,204.85,204.82,6.86130941]
[1753228138443,9.5,204.85,204.84,13.72261882]
[1753228138610,9.5,204.87,204.84,14.40261882]
[1753228138808,9.5,204.87,204.86,6.86130941]
[1753228139051,0.03,204.95,204.9,55.28]
[1753228139204,0.03,204.95,204.94,23.64599338]
[1753228139410,0.03,204.95,204.94,6.86130941]
[1753228139710,0.03,204.95,204.93,6.86130941]
[1753228140009,0.03,204.95,204.89,16.92684554]
[1753228140217,0.03,204.95,204.92,6.86130941]
[1753228140605,0.03,204.95,204.88,0.68]
[1753228140606,0.03,204.95,204.88,5.5606894]
[1753228140827,0.67,204.94,204.89,42.76130941]
[1753228141021,0.67,204.94,204.9,6.86130941]
[1753228141218,0.03,204.95,204.89,35.9]
[1753228141418,0.03,204.95,204.91,6.86130941]
[1753228141927,0.03,204.95,204.9,0.68]
[1753228142306,0.03,204.95,204.93,6.86130941]
[1753228142749,0.03,204.95,204.91,35.88]
[1753228142905,0.03,204.95,204.94,6.86130941]
[1753228143526,0.03,204.95,204.93,6.86130941]
[1753228143724,0.03,204.95,204.94,6.86130941]
[1753228144307,0.7,204.95,204.91,35.86]
[1753228144510,4.90925183,204.95,204.91,35.86]
[1753228144715,0.67,204.94,204.91,35.86]
[1753228145133,0.67,204.94,204.88,4.88087431]
[1753228145464,0.03,204.95,204.91,6.86130941]
[1753228145952,0.67,204.94,204.89,35.86]
[1753228146116,0.67,204.94,204.91,6.86130941]
[1753228146443,0.67,204.94,204.89,35.86]
[1753228146736,7.53130941,204.93,204.87,35.9]
[1753228146937,6.86130941,204.9,204.87,0.06]
[1753228147322,0.67,204.89,204.87,0.06]
[1753228147721,32.5136,204.92,204.88,6.86130941]
[1753228147914,6.5136,204.92,204.89,6.86130941]
[1753228148114,26.0,204.91,204.89,6.86130941]
[1753228148440,26.0,204.9,204.89,6.86130941]
[1753228148615,6.5136,204.92,204.89,6.86130941]
[1753228148817,0.03,204.95,204.92,16.78468397]
[1753228149032,0.03,204.95,204.94,6.86130941]
[1753228149315,0.03,204.95,204.94,59.62815495]
[1753228149544,0.03,204.95,204.94,60.30815495]
[1753228150052,0.03,204.99,204.95,16.92684554]
[1753228150218,0.03,204.99,204.98,6.86130941]
[1753228150533,0.03,204.99,204.98,47.57983414]
[1753228151037,0.03,204.99,204.98,11.73983414]
[1753228151217,0.03,204.99,204.98,47.57983414]
[1753228151724,0.03,204.99,204.98,40.71852473]
[1753228151924,0.03,204.99,204.98,47.57983414]
[1753228152537,0.03,204.99,204.98,47.55983414]
[1753228152740,0.03,204.99,204.98,48.23983414]
[1753228153126,0.03,204.99,204.98,12.41983414]
[1753228153331,0.03,204.99,204.98,48.23983414]
[1753228154324,0.03,204.99,204.98,65.65453215]
[1753228158529,0.03,204.99,204.98,22.48537027]
[1753228158727,0.03,204.99,204.89,6.99999999]
[1753228158945,0.03,204.99,204.98,6.86130941]
[1753228159854,0.03,204.99,204.97,6.86130941]
[1753228160033,0.69,204.99,204.96,6.86130941]
[1753228160234,0.03,204.99,204.96,6.86130941]
[1753228160662,0.69,204.99,204.95,35.82]
[1753228160837,0.69,204.99,204.96,6.86130941]
[1753228161152,0.69,204.99,204.95,42.68130941]
[1753228161836,0.69,204.99,204.96,6.86130941]
[1753228162357,0.03,204.99,204.95,40.6991657]
[1753228162660,0.03,204.99,204.98,6.86130941]
[1753228162952,0.03,204.99,204.97,6.86130941]
[1753228163337,0.03,204.99,204.96,6.86130941]
[1753228165052,0.66,204.98,204.96,6.99999999]
[1753228166286,0.03,204.99,204.96,6.99999999]
[1753228166838,0.69,204.99,204.96,6.99999999]
[1753228169596,5.56833769,204.99,204.96,6.99999999]
[1753228170672,0.03,204.99,204.96,13.8613094]
[1753228171492,0.03,204.99,204.96,6.99999999]
[1753228172994,0.69,204.99,204.96,6.99999999]
[1753228173170,7.52130941,204.98,204.93,6.99999999]
[1753228173372,11.74078633,204.94,204.93,6.99999999]
[1753228173590,12.40078633,204.94,204.93,6.99999999]
[1753228174173,4.87931655,204.95,204.93,6.99999999]
[1753228174372,11.74062596,204.95,204.93,6.99999999]
[1753228174868,11.74062596,204.95,204.89,35.8]
[1753228174869,7.52130941,204.94,204.88,6.99999999]
[1753228175083,7.52130941,204.94,204.87,0.06]
[1753228175084,6.86130941,204.92,204.87,0.06]
[1753228175298,6.86130941,204.91,204.87,0.06]
[1753228175473,4.88042947,204.9,204.87,0.06]
[1753228176072,5.54042947,204.9,204.87,0.06]
[1753228176672,11.74152911,204.91,204.87,0.06]
[1753228176998,0.66,204.93,204.87,7.58130941]
[1753228177399,0.66,204.93,204.88,6.86130941]
[1753228177787,5.53989573,204.93,204.88,6.86130941]
[1753228177988,2.3002,204.98,204.92,6.86130941]
[1753228178297,26.0,204.96,204.94,6.86130941]
[1753228178891,26.0,204.96,204.91,0.66]
[1753228179096,30.879137,204.96,204.92,6.86130941]
[1753228179696,31.539137,204.96,204.92,6.86130941]
[1753228180077,26.0,204.96,204.93,6.86130941]
[1753228181177,26.0,204.96,204.93,13.8613094]
[1753228181595,30.87907174,204.96,204.93,6.99999999]
[1753228182003,6.86130941,204.94,204.87,0.06]
[1753228182176,36.46,204.95,204.87,0.06]
[1753228182177,6.86130941,204.93,204.87,0.06]
[1753228182381,6.86130941,204.94,204.87,11.8024485]
[1753228182689,6.86130941,204.94,204.87,6.92130941]
[1753228183206,4.87947692,204.94,204.88,6.86130941]
[1753228183778,6.86130941,204.93,204.87,6.92130941]
[1753228184987,12.40078633,204.94,204.87,6.92130941]
[1753228185696,6.86130941,204.93,204.87,6.92130941]
[1753228185909,6.86130941,204.93,204.87,0.06]
[1753228186209,7.52130941,204.92,204.87,0.06]
[1753228186509,6.86130941,204.91,204.87,0.06]
[1753228186706,7.52130941,204.92,204.87,0.06]
[1753228187290,0.66,204.91,204.87,0.06]
[1753228187489,12.97840941,204.88,204.87,0.06]
[1753228187696,13.65840941,204.88,204.87,0.06]
[1753228187893,6.1171,204.88,204.87,0.06]
[1753228188092,13.65840941,204.88,204.87,0.06]
[1753228189279,18.5393153,204.88,204.87,0.06]
[1753228189990,0.68,204.9,204.87,0.06]
[1753228190192,35.8,204.9,204.87,0.06]
[1753228190392,42.66130941,204.9,204.87,0.06]
[1753228190597,43.34130941,204.9,204.87,0.06]
[1753228191124,41.36045054,204.9,204.87,0.06]
[1753228191332,35.8,204.9,204.87,0.06]
[1753228191797,0.68,204.89,204.87,0.06]
[1753228191998,6.86130941,204.88,204.87,0.06]
[1753228192412,7.54130941,204.88,204.87,0.06]
[1753228193006,43.36130941,204.88,204.87,0.06]
[1753228193225,48.2422153,204.88,204.87,0.06]
[1753228199213,5.56090589,204.88,204.87,0.06]
[1753228199410,41.38090589,204.88,204.87,0.06]
[1753228199608,48.2422153,204.88,204.87,0.06]
[1753228199805,12.4222153,204.88,204.87,0.06]
[1753228200013,4.88090589,204.88,204.87,0.06]
[1753228200397,11.7422153,204.88,204.87,0.06]
[1753228200602,41.38090589,204.88,204.87,0.06]
[1753228200925,11.7422153,204.88,204.87,0.06]
[1753228201233,40.70090589,204.88,204.87,0.06]
[1753228202500,47.5622153,204.88,204.87,0.06]
[1753228203214,40.70090589,204.88,204.87,0.06]
[1753228203406,47.5622153,204.88,204.87,0.06]
[1753228203816,24.63338397,204.87,204.86,0.06]
[1753228204127,15.39000941,204.87,204.86,0.06]
[1753228204313,51.21000941,204.87,204.86,0.06]
[1753228205321,56.09115355,204.87,204.86,0.06]
[1753228205811,0.68,204.9,204.86,0.06]
[1753228206012,11.74126256,204.92,204.86,0.76]
[1753228206218,35.82,204.91,204.87,7.56130941]
[1753228206439,4.87950735,204.94,204.9,6.86130941]
[1753228206738,35.82,204.93,204.89,6.86130941]
[1753228207036,29.2099636,204.96,204.92,6.86130941]
[1753228207223,29.2099636,204.96,204.92,0.7]
[1753228207423,35.82,204.95,204.92,0.7]
[1753228208512,40.95033961,204.96,204.92,0.7]
[1753228208707,35.82,204.95,204.92,0.7]
[1753228209914,40.69931926,204.95,204.92,0.7]
[1753228211845,42.66130941,204.95,204.86,0.20216157]
[1753228212011,42.66130941,204.95,204.89,0.7]
[1753228212012,6.86130941,204.94,204.89,0.7]
[1753228212210,42.66130941,204.95,204.9,0.7]
[1753228212408,42.66130941,204.95,204.88,6.86130941]
[1753228212617,42.66130941,204.95,204.9,0.7]
[1753228212815,42.66130941,204.95,204.88,6.86130941]
[1753228213038,47.54062867,204.95,204.91,0.7]
[1753228213237,47.57062867,204.95,204.91,7.69999999]
[1753228213635,6.86130941,204.94,204.91,7.69999999]
[1753228214548,4.87971502,204.93,204.91,7.69999999]
[1753228215630,4.87971502,204.93,204.91,6.99999999]
[1753228215830,69.34130941,204.92,204.91,6.99999999]
[1753228217328,69.34130941,204.92,204.87,0.06]
[1753228217329,4.87952786,204.94,204.88,6.86130941]
[1753228217533,6.86130941,204.91,204.87,0.06]
[1753228217733,42.66130941,204.91,204.87,0.06]
[1753228218067,4.88042947,204.9,204.87,0.75]
[1753228218249,6.86130941,204.89,204.87,0.06]
[1753228218958,42.66130941,204.89,204.87,0.06]
[1753228219263,35.8,204.89,204.87,0.06]
[1753228219422,35.8,204.89,204.88,0.69]
[1753228220061,4.8802389,204.91,204.88,0.69]
[1753228220458,4.8802389,204.91,204.87,0.06]
[1753228220645,4.8802389,204.91,204.87,0.75]
[1753228220838,11.74154831,204.91,204.87,0.75]
[1753228221162,6.86130941,204.89,204.87,0.06]
[1753228221339,42.66130941,204.88,204.87,0.06]
[1753228221839,35.8,204.88,204.87,0.06]
[1753228222545,47.5422153,204.88,204.87,0.06]
[1753228223138,48.2522153,204.88,204.87,0.06]
[1753228223844,54.6625153,204.88,204.87,0.06]
[1753228224057,0.03,204.95,204.87,0.75]
[1753228224241,0.03,204.95,204.94,23.78815495]
[1753228224435,0.03,204.95,204.94,29.35763187]
[1753228224661,0.03,204.95,204.94,0.69]
[1753228224862,0.03,204.95,204.94,12.43078633]
[1753228225032,0.03,204.95,204.94,12.5729479]
[1753228225238,0.03,204.99,204.96,0.14216157]
[1753228225453,0.03,204.99,204.98,4.28206417]
[1753228225661,0.03,204.99,204.98,4.97206417]
[1753228225860,0.03,205.0,204.99,16.92684554]
[1753228226165,0.03,205.0,204.99,21.89890971]
[1753228226363,0.03,205.0,204.99,31.05926062]
[1753228227256,0.03,205.0,204.99,29.3412888]
[1753228227467,0.2,205.02,205.01,26.0]
[1753228227658,0.2,205.02,205.01,33.3339376]
[1753228227854,0.03,205.04,205.02,16.78468397]
[1753228228063,0.03,205.04,205.03,7.33389002]
[1753228228372,0.03,205.04,205.03,0.69]
[1753228228555,0.03,205.04,204.99,0.69]
[1753228228940,0.03,205.04,204.95,78.56468397]
[1753228228941,0.03,205.04,205.0,0.69]
[1753228229141,6.87615652,205.04,205.0,6.99999999]
[1753228229341,0.03,205.04,204.98,6.84615652]
[1753228229561,0.03,205.04,204.98,13.84615651]
[1753228230545,11.75325367,205.04,204.98,6.99999999]
[1753228230967,11.75325367,205.04,204.98,13.84615651]
[1753228231168,4.90709715,205.04,204.98,13.84615651]
[1753228231877,11.75325367,205.04,204.98,13.84615651]
[1753228232064,4.90709715,205.04,204.98,13.84615651]
[1753228232267,4.90709715,205.04,204.98,14.53615651]
[1753228232467,6.84615652,205.02,204.98,6.99999999]
[1753228232670,4.87781083,205.01,204.96,0.69]
[1753228232863,6.84615652,205.0,204.96,0.69]
[1753228233047,11.72396735,205.01,204.96,0.69]
[1753228233558,42.63615652,205.04,204.98,6.84615652]
[1753228233757,4.87743664,205.03,204.97,7.53615652]
[1753228234066,42.63615652,205.04,204.95,6.99999999]
[1753228234067,0.03,205.04,204.99,6.84615652]
[1753228234251,0.03,205.04,205.0,0.69]
[1753228235055,0.03,205.04,205.02,6.84615652]